bitfinex/quotes_BTCUSD_20240819
["timestamp","ask_amount","ask_price","bid_price","bid_amount"]
[1724100127397,0.588502,59279.0,59278.0,0.0119042]
[1724100127604,0.588502,59279.0,59278.0,0.04260725]
[1724100127735,0.588502,59279.0,59278.0,0.0119042]
[1724100128559,0.925889,59279.0,59278.0,0.0119042]
[1724100128750,0.920889,59279.0,59278.0,0.0119042]
[1724100129012,1.321376,59279.0,59278.0,0.0119042]
[1724100129567,0.983989,59279.0,59278.0,0.0119042]
[1724100131196,0.583502,59279.0,59278.0,0.0119042]
[1724100131444,0.246115,59279.0,59278.0,0.0119042]
[1724100131644,0.583502,59279.0,59278.0,0.0119042]
[1724100132380,0.246115,59279.0,59278.0,0.0119042]
[1724100132893,0.583502,59279.0,59278.0,0.0119042]
[1724100133877,0.246115,59279.0,59278.0,0.01243082]
[1724100134077,0.506073,59280.0,59279.0,0.00052662]
[1724100134311,0.05058855,59284.0,59279.0,0.06442662]
[1724100134312,0.16868,59284.0,59279.0,0.06442662]
[1724100134512,0.250177,59285.0,59279.0,0.06442662]
[1724100134694,0.250177,59285.0,59280.0,0.03069085]
[1724100134828,0.168679,59284.0,59280.0,0.03069085]
[1724100135027,0.168679,59284.0,59281.0,0.00052662]
[1724100135433,0.168679,59284.0,59282.0,0.03070341]
[1724100136058,0.168679,59284.0,59280.0,0.00052662]
[1724100136290,0.168679,59284.0,59283.0,0.03069731]
[1724100136492,0.168679,59284.0,59280.0,0.00052662]
[1724100136982,0.168679,59284.0,59281.0,0.03070951]
[1724100138441,0.0815,59285.0,59281.0,0.03070951]
[1724100138442,0.250176,59285.0,59281.0,0.03070951]
[1724100138971,0.168679,59284.0,59281.0,0.03070951]
[1724100139324,0.168679,59284.0,59279.0,0.0639]
[1724100139490,0.168679,59284.0,59282.0,0.03070341]
[1724100139687,0.0825,59285.0,59279.0,0.0639]
[1724100139890,0.251177,59285.0,59283.0,0.03069731]
[1724100140089,0.250177,59285.0,59279.0,0.0639]
[1724100140291,0.250177,59285.0,59284.0,0.03069121]
[1724100140554,0.250177,59285.0,59279.0,0.0639]
[1724100140555,0.30665171,59285.0,59279.0,0.0639]
[1724100140757,0.168679,59284.0,59279.0,0.0639]
[1724100140911,0.0815,59285.0,59280.0,0.03071561]
[1724100141107,0.0825,59285.0,59280.0,0.03071561]
[1724100141289,0.251178,59285.0,59280.0,0.03071561]
[1724100141894,0.250178,59285.0,59280.0,0.03071561]
[1724100142298,0.251178,59285.0,59283.0,0.00052662]
[1724100142505,0.0946,59284.0,59283.0,0.00052662]
[1724100143151,0.0946,59284.0,59283.0,0.08022662]
[1724100143352,0.001,59285.0,59283.0,0.08022662]
[1724100143353,0.170676,59285.0,59283.0,0.08022662]
[1724100143560,0.169676,59285.0,59284.0,0.03121783]
[1724100144183,0.169676,59285.0,59284.0,0.00052662]
[1724100144184,0.22515405,59285.0,59284.0,0.00052662]
[1724100144391,0.27575976,59285.0,59284.0,0.00052662]
[1724100144599,0.27575976,59285.0,59279.0,0.1436]
[1724100144600,0.05647805,59285.0,59279.0,1.6436]
[1724100144801,0.169677,59285.0,59280.0,0.03071561]
[1724100145421,0.168677,59285.0,59280.0,0.03071561]
[1724100146256,0.169677,59285.0,59280.0,0.03071561]
[1724100146660,0.168674,59286.0,59280.0,0.03071561]
[1724100147228,0.001,59285.0,59280.0,0.03071561]
[1724100147372,0.002,59285.0,59280.0,0.03071561]
[1724100147587,0.001,59285.0,59284.0,0.506038]
[1724100147787,0.001,59285.0,59284.0,0.986997]
[1724100147993,0.001,59285.0,59284.0,1.01766435]
[1724100148637,0.000822,59287.0,59286.0,0.50602]
[1724100149066,0.000822,59287.0,59286.0,0.53667515]
[1724100149307,0.000822,59287.0,59286.0,0.87402215]
[1724100150217,0.000822,59287.0,59286.0,1.01852215]
[1724100150501,0.000822,59287.0,59286.0,1.02052215]
[1724100151682,0.000822,59287.0,59286.0,1.02252215]
[1724100153220,0.000822,59287.0,59286.0,1.45446915]
[1724100153378,0.000822,59287.0,59286.0,2.06369154]
[1724100153754,0.000822,59287.0,59286.0,2.42403854]
[1724100153933,0.000822,59287.0,59286.0,2.79812599]
[1724100154196,0.000822,59287.0,59286.0,2.13706626]
[1724100154404,0.000822,59287.0,59286.0,3.54046606]
[1724100154614,0.001822,59287.0,59286.0,3.49809154]
[1724100154815,0.001822,59287.0,59286.0,3.54846606]
[1724100155015,0.001822,59287.0,59286.0,3.55046606]
[1724100155016,0.000822,59287.0,59286.0,3.55046606]
[1724100155228,0.000822,59287.0,59286.0,3.51009154]
[1724100155229,0.001822,59287.0,59286.0,3.51009154]
[1724100155427,0.001822,59287.0,59286.0,3.50009154]
[1724100155835,0.002822,59287.0,59286.0,3.51009154]
[1724100156034,0.002822,59287.0,59286.0,3.49809154]
[1724100156241,0.002822,59287.0,59286.0,3.51209154]
[1724100157777,0.002822,59287.0,59286.0,3.49809154]
[1724100157999,0.002822,59287.0,59286.0,3.51209154]
[1724100160904,0.002822,59287.0,59286.0,0.80570177]
[1724100161063,0.002822,59287.0,59286.0,0.19968177]
[1724100161264,0.002822,59287.0,59286.0,0.70570177]
[1724100161690,0.002822,59287.0,59286.0,0.69570177]
[1724100161691,0.000822,59287.0,59286.0,0.69570177]
[1724100161846,0.000822,59287.0,59286.0,0.35835477]
[1724100162064,0.000822,59287.0,59286.0,0.37035477]
[1724100162065,0.001822,59287.0,59286.0,0.37035477]
[1724100162273,0.001822,59287.0,59286.0,0.35635477]
[1724100162486,0.001822,59287.0,59286.0,0.47035477]
[1724100164261,0.001822,59287.0,59286.0,0.80770177]
[1724100164945,0.001822,59287.0,59286.0,2.64504877]
[1724100165096,0.001822,59287.0,59286.0,3.15374454]
[1724100168948,0.001822,59287.0,59286.0,3.49109154]
[1724100169575,0.001822,59287.0,59286.0,3.49309154]
[1724100170420,0.001822,59287.0,59286.0,3.85343854]
[1724100170944,0.001822,59287.0,59286.0,3.85543854]
[1724100171164,0.001822,59287.0,59286.0,3.90274006]
[1724100171377,0.001822,59287.0,59286.0,3.85243854]
[1724100171825,0.001822,59287.0,59286.0,3.51409154]
[1724100173664,0.001822,59287.0,59286.0,3.85243854]
[1724100174304,0.001822,59287.0,59286.0,3.85143854]
[1724100176209,0.001822,59287.0,59286.0,3.85243854]
[1724100177218,0.001822,59287.0,59286.0,3.85143854]
[1724100177421,0.001822,59287.0,59286.0,3.85243854]
[1724100178275,0.001822,59287.0,59286.0,4.27584122]
[1724100178495,0.001822,59287.0,59286.0,4.22561554]
[1724100179090,0.001822,59287.0,59286.0,4.22761554]
[1724100179293,0.001822,59287.0,59286.0,4.21561554]
[1724100179294,0.000822,59287.0,59286.0,4.21561554]
[1724100179497,0.000822,59287.0,59286.0,4.25180574]
[1724100179707,0.001822,59287.0,59286.0,4.26280574]
[1724100179904,0.001822,59287.0,59286.0,4.27680574]
[1724100180480,0.001822,59287.0,59286.0,4.27480574]
[1724100181320,0.001822,59287.0,59286.0,4.27482236]
[1724100181928,0.001822,59287.0,59286.0,4.22461554]
[1724100182128,0.001822,59287.0,59286.0,4.22661554]
[1724100182483,0.001822,59287.0,59286.0,4.22561554]
[1724100183922,0.000822,59300.0,59299.0,0.00052662]
[1724100184148,1e-06,59300.0,59299.0,2.41464839]
[1724100184354,0.00822,59319.0,59318.0,1.245777]
[1724100184565,0.00822,59319.0,59318.0,1.41712577]
[1724100184779,0.00822,59319.0,59318.0,3.27419827]
[1724100184980,0.00822,59319.0,59318.0,3.47669827]
[1724100185791,0.00822,59319.0,59318.0,3.48969827]
[1724100186033,0.00822,59319.0,59318.0,3.47669827]
[1724100187591,0.00822,59319.0,59318.0,3.50369827]
[1724100187811,0.00822,59319.0,59318.0,3.48969827]
[1724100188013,0.00822,59319.0,59318.0,3.49069827]
[1724100188160,0.00822,59319.0,59318.0,3.49122489]
[1724100188359,0.00822,59319.0,59318.0,3.50522489]
[1724100189183,0.00822,59319.0,59318.0,3.49969899]
[1724100189361,0.00822,59319.0,59318.0,3.51369899]
[1724100190362,0.00822,59319.0,59318.0,3.49969899]
[1724100190752,0.00822,59319.0,59318.0,3.51369899]
[1724100191171,0.00822,59319.0,59318.0,3.48569899]
[1724100191501,0.00822,59319.0,59318.0,3.51369899]
[1724100191719,0.00822,59319.0,59318.0,3.49069899]
[1724100191923,0.00822,59319.0,59318.0,3.47669899]
[1724100192994,0.00822,59319.0,59318.0,3.49069899]
[1724100193224,0.00822,59319.0,59318.0,3.34549899]
[1724100193451,0.00822,59319.0,59318.0,3.42209899]
[1724100193691,0.00822,59319.0,59318.0,3.47249899]
[1724100193919,0.00822,59319.0,59318.0,3.45849899]
[1724100194383,0.00822,59319.0,59318.0,3.48649899]
[1724100194842,0.00822,59319.0,59318.0,3.47249899]
[1724100195104,0.00822,59319.0,59318.0,3.48649899]
[1724100196205,0.00774197,59319.0,59318.0,3.48649899]
[1724100196610,0.00774197,59319.0,59318.0,3.40989899]
[1724100197488,0.00774197,59319.0,59318.0,3.07273399]
[1724100198890,0.00726394,59319.0,59318.0,3.40989899]
[1724100199089,0.00726394,59319.0,59318.0,3.07273399]
[1724100199658,0.00678591,59319.0,59318.0,3.40989899]
[1724100199790,0.00630788,59319.0,59318.0,3.43289899]
[1724100201327,0.00630788,59319.0,59318.0,3.43389899]
[1724100201526,0.00630788,59319.0,59318.0,3.51049899]
[1724100201728,0.00630788,59319.0,59318.0,3.50949899]
[1724100201928,0.00774197,59322.0,59321.0,1.51769262]
[1724100202132,0.00774197,59322.0,59321.0,1.95304139]
[1724100202330,0.00774197,59322.0,59321.0,1.97297743]
[1724100202559,0.00774197,59322.0,59321.0,3.47297743]
[1724100203520,0.00774197,59322.0,59321.0,3.48697743]
[1724100204129,0.00774197,59322.0,59321.0,3.47297743]
[1724100204331,0.00774197,59322.0,59321.0,3.48697743]
[1724100204739,0.00774197,59322.0,59321.0,3.41037743]
[1724100205333,0.00774197,59322.0,59321.0,3.42437743]
[1724100206792,0.00774197,59322.0,59321.0,3.40137743]
[1724100207068,0.00774197,59322.0,59321.0,2.99982943]
[1724100207310,0.08614197,59322.0,59321.0,2.99982943]
[1724100207713,0.08614197,59322.0,59321.0,1.81651004]
[1724100207911,0.08614197,59322.0,59321.0,0.55365804]
[1724100208135,0.14914197,59322.0,59321.0,0.04793604]
[1724100208542,0.14914197,59322.0,59321.0,0.03393604]
[1724100209103,0.14914197,59322.0,59321.0,0.04493604]
[1724100209309,0.14914197,59322.0,59321.0,0.53665804]
[1724100209664,0.14914197,59322.0,59321.0,0.04393604]
[1724100209871,0.14914197,59322.0,59321.0,0.03293604]
[1724100210095,0.14914197,59322.0,59321.0,0.18851004]
[1724100210306,0.14914197,59322.0,59321.0,0.20051004]
[1724100210512,0.14914197,59322.0,59321.0,0.03193604]
[1724100210940,0.14914197,59322.0,59321.0,0.02493604]
[1724100211149,0.14914197,59322.0,59321.0,0.53665804]
[1724100211587,0.14914197,59322.0,59321.0,0.53165804]
[1724100211825,0.14914197,59322.0,59321.0,0.53565804]
[1724100213096,0.14914197,59322.0,59321.0,0.87280604]
[1724100214938,0.14914197,59322.0,59321.0,0.88137321]
[1724100215173,0.14914197,59322.0,59321.0,0.87280604]
[1724100216637,0.14914197,59322.0,59321.0,2.37280604]
[1724100216844,0.14914197,59322.0,59321.0,2.03565804]
[1724100217880,0.14914197,59322.0,59321.0,0.87280604]
[1724100218086,0.14914197,59322.0,59321.0,0.87333266]
[1724100218291,0.14914197,59322.0,59321.0,0.53565804]
[1724100218507,0.14914197,59322.0,59321.0,0.19851004]
[1724100218717,0.14914197,59322.0,59321.0,0.53565804]
[1724100219549,0.14914197,59322.0,59321.0,0.87280604]
[1724100219757,0.00774197,59322.0,59321.0,0.87280604]
[1724100220893,0.00774197,59322.0,59321.0,0.53565804]
[1724100221100,0.00774197,59322.0,59321.0,0.87280604]
[1724100221310,0.08894197,59322.0,59321.0,0.87280604]
[1724100222141,0.08894197,59322.0,59321.0,0.87370914]
[1724100222618,0.08894197,59322.0,59321.0,2.37370914]
[1724100223057,0.08894197,59322.0,59321.0,2.71085714]
[1724100223058,0.08853617,59322.0,59321.0,2.71085714]
[1724100223299,0.08853617,59322.0,59321.0,0.87370914]
[1724100225429,0.08853617,59322.0,59321.0,0.19941314]
[1724100225645,0.08853617,59322.0,59321.0,0.54158993]
[1724100226333,0.08853617,59322.0,59321.0,0.20444193]
[1724100226758,0.15163617,59322.0,59321.0,0.20444193]
[1724100226985,0.15163617,59322.0,59321.0,0.54158993]
[1724100227414,0.15163617,59322.0,59321.0,0.54211655]
[1724100227829,0.00733617,59322.0,59321.0,1.21641255]
[1724100228678,0.00733617,59322.0,59321.0,2.71588593]
[1724100229118,0.00733617,59322.0,59321.0,2.71641255]
[1724100235256,0.08943617,59322.0,59321.0,2.71588593]
[1724100235477,0.15253617,59322.0,59321.0,0.87873793]
[1724100236334,0.15253617,59322.0,59321.0,0.87926455]
[1724100237202,0.00733617,59322.0,59321.0,0.87926455]
[1724100237406,0.00733617,59322.0,59321.0,1.02496455]
[1724100237611,0.00733617,59322.0,59321.0,1.36211255]
[1724100240131,0.00733617,59322.0,59321.0,2.86211255]
[1724100240338,0.00733617,59322.0,59321.0,2.71588593]
[1724100240981,0.00733617,59322.0,59321.0,2.37873793]
[1724100241389,0.00733617,59322.0,59321.0,2.71588593]
[1724100243060,0.00733617,59322.0,59321.0,2.71641255]
[1724100247630,0.00733617,59322.0,59321.0,2.86211255]
[1724100247838,0.00733617,59322.0,59321.0,2.85611255]
[1724100248048,0.00733617,59322.0,59321.0,3.37360932]
[1724100248273,0.00733617,59322.0,59321.0,3.52396299]
[1724100248487,0.00733617,59322.0,59321.0,3.17781499]
[1724100248707,0.00733617,59322.0,59321.0,3.17381499]
[1724100248924,0.00733617,59322.0,59321.0,3.18681499]
[1724100249348,0.00685585,59322.0,59321.0,3.18681499]
[1724100249571,0.00685585,59322.0,59321.0,3.01546622]
[1724100250219,0.00685585,59322.0,59321.0,2.95211255]
[1724100250426,0.00685585,59322.0,59321.0,2.95911255]
[1724100250645,0.00685585,59322.0,59321.0,2.97311255]
[1724100250855,0.00685585,59322.0,59321.0,3.02346622]
[1724100251109,0.00685585,59322.0,59321.0,3.03446622]
[1724100251494,0.00685585,59322.0,59321.0,3.02046622]
[1724100251696,0.00685585,59322.0,59321.0,3.41958007]
[1724100251932,0.00685585,59322.0,59321.0,3.43258007]
[1724100256224,0.00685585,59322.0,59321.0,3.43254755]
[1724100257652,0.00685585,59322.0,59321.0,2.98311255]
[1724100257857,0.00685585,59322.0,59321.0,3.03348238]
[1724100258071,0.00685585,59322.0,59321.0,3.43255735]
[1724100258692,0.00685585,59322.0,59321.0,3.05866063]
[1724100258928,0.00685585,59322.0,59321.0,3.43254684]
[1724100259549,0.00685585,59322.0,59321.0,3.05866063]
[1724100259758,0.00685585,59322.0,59321.0,2.98311255]
[1724100259964,0.00685585,59322.0,59321.0,3.05866063]
[1724100260373,0.00685585,59322.0,59321.0,3.32026055]
[1724100260577,0.00685585,59322.0,59321.0,3.6038951]
[1724100260784,0.00685585,59322.0,59321.0,3.88949502]
[1724100260991,0.00685585,59322.0,59321.0,3.89047013]
[1724100261195,0.00685585,59322.0,59321.0,3.89869013]
[1724100261413,0.00685585,59322.0,59321.0,4.23583813]
[1724100261840,0.00685585,59322.0,59321.0,4.21783813]
[1724100262043,0.00685585,59322.0,59321.0,4.21883813]
[1724100262257,0.00685585,59322.0,59321.0,4.23283813]
[1724100262670,0.00685585,59322.0,59321.0,4.31323813]
[1724100263095,0.00685585,59322.0,59321.0,4.32723813]
[1724100263277,0.00685585,59322.0,59321.0,4.32722696]
[1724100263532,0.00685585,59322.0,59321.0,4.31222696]
[1724100264174,0.00685585,59322.0,59321.0,4.32622696]
[1724100264391,0.00685585,59322.0,59321.0,4.31222696]
[1724100264610,0.00685585,59322.0,59321.0,4.43972696]
[1724100264829,0.00685585,59322.0,59321.0,4.45372696]
[1724100265058,0.00685585,59322.0,59321.0,4.45472696]
[1724100265491,0.00685585,59322.0,59321.0,4.45272696]
[1724100265697,0.00685585,59322.0,59321.0,4.46672264]
[1724100266765,0.00685585,59322.0,59321.0,4.46872264]
[1724100267392,0.00685585,59322.0,59321.0,4.46972264]
[1724100268776,0.00685585,59322.0,59321.0,4.50355264]
[1724100269075,0.00685585,59322.0,59321.0,4.50055264]
[1724100269506,0.00685585,59322.0,59321.0,4.48655264]
[1724100269709,0.00685585,59322.0,59321.0,4.47355264]
[1724100269925,0.00685585,59322.0,59321.0,4.48855264]
[1724100270134,0.00685585,59322.0,59321.0,4.48955264]
[1724100270352,0.00685585,59322.0,59321.0,4.49155264]
[1724100270561,0.00685585,59322.0,59321.0,4.50555264]
[1724100271206,0.00685585,59322.0,59321.0,4.50155155]
[1724100272034,0.00685585,59322.0,59321.0,4.50455155]
[1724100272236,0.00685585,59322.0,59321.0,4.50155155]
[1724100272648,0.00685585,59322.0,59321.0,4.50155156]
[1724100273072,0.00822,59325.0,59324.0,1.99424662]
[1724100273271,0.00822,59325.0,59324.0,2.66243963]
[1724100273479,0.00822,59325.0,59324.0,2.68725643]
[1724100273661,0.00822,59325.0,59324.0,2.68825643]
[1724100273887,0.00822,59325.0,59324.0,2.68725643]
[1724100274620,0.00822,59325.0,59324.0,2.70325643]
[1724100275277,0.00822,59325.0,59324.0,2.71725643]
[1724100276332,0.00822,59325.0,59324.0,2.72612146]
[1724100277361,0.00822,59325.0,59324.0,2.72512146]
[1724100277572,0.00822,59325.0,59324.0,2.72612146]
[1724100277979,0.00822,59325.0,59324.0,3.06525246]
[1724100279110,1e-06,59329.0,59328.0,2.19172862]
[1724100279311,1e-06,59329.0,59328.0,3.03985163]
[1724100279558,1e-06,59329.0,59328.0,3.06462108]
[1724100279758,1e-06,59329.0,59328.0,3.06562108]
[1724100279958,1e-06,59329.0,59328.0,3.06555254]
[1724100280376,1e-06,59329.0,59328.0,3.09155254]
[1724100280579,1e-06,59329.0,59328.0,3.07755254]
[1724100280786,1e-06,59329.0,59328.0,3.07955254]
[1724100280987,1e-06,59329.0,59328.0,3.09355254]
[1724100281144,1e-06,59329.0,59328.0,3.09455254]
[1724100281347,1e-06,59329.0,59328.0,3.09155254]
[1724100281796,1e-06,59329.0,59328.0,3.09156331]
[1724100283192,1e-06,59329.0,59328.0,3.09356331]
[1724100284041,1e-06,59329.0,59328.0,3.09456331]
[1724100286325,1e-06,59329.0,59328.0,3.09356331]
[1724100286538,1e-06,59329.0,59328.0,3.21867256]
[1724100286737,1e-06,59329.0,59328.0,3.18796331]
[1724100287163,1e-06,59329.0,59328.0,3.31307256]
[1724100287996,0.077,59343.0,59333.0,1.51738662]
[1724100288200,0.077,59343.0,59333.0,1.90613539]
[1724100288402,0.0944,59351.0,59333.0,1.90613539]
[1724100288403,0.0771,59336.0,59333.0,1.83645179]
[1724100288607,0.0771,59336.0,59333.0,1.98089423]
[1724100289004,0.0771,59336.0,59333.0,1.93085179]
[1724100289279,0.0771,59336.0,59333.0,1.59377179]
[1724100289555,0.0771,59336.0,59333.0,1.94485179]
[1724100290044,0.0771,59336.0,59333.0,1.96769679]
[1724100290294,0.0771,59336.0,59333.0,3.46769679]
[1724100290917,0.00842,59339.0,59333.0,3.94787679]
[1724100291120,0.00842,59339.0,59333.0,4.39660764]
[1724100291327,0.00842,59339.0,59333.0,4.32164493]
[1724100291540,0.00842,59339.0,59333.0,4.42259521]
[1724100291766,0.00842,59339.0,59338.0,1.66036062]
[1724100291975,0.00842,59339.0,59338.0,2.35770753]
[1724100292180,0.00842,59339.0,59338.0,2.58453597]
[1724100292403,0.00842,59339.0,59338.0,4.32144426]
[1724100292606,0.0117017,59352.0,59351.0,1.27434962]
[1724100292607,0.00385858,59352.0,59351.0,1.27434962]
[1724100293025,0.00385858,59352.0,59351.0,1.29897501]
[1724100293229,0.00385858,59352.0,59351.0,1.47032378]
[1724100293688,0.00385858,59352.0,59351.0,1.80730178]
[1724100294420,0.00385858,59352.0,59351.0,2.00900178]
[1724100294628,0.00385858,59352.0,59351.0,3.57340178]
[1724100295240,0.00385858,59352.0,59351.0,3.59740178]
[1724100295460,0.00385858,59352.0,59351.0,3.58640178]
[1724100295671,0.00385858,59352.0,59351.0,3.43030178]
[1724100296088,0.00385858,59352.0,59351.0,2.98992378]
[1724100296089,0.07995858,59352.0,59351.0,2.98992378]
[1724100296309,0.07995858,59352.0,59351.0,3.09832378]
[1724100297596,0.07995858,59352.0,59351.0,3.10717577]
[1724100297999,0.07995858,59352.0,59351.0,3.07917577]
[1724100298190,0.07995858,59352.0,59351.0,3.09317577]
[1724100298417,0.07995858,59352.0,59351.0,3.10617577]
[1724100298622,0.07995858,59352.0,59351.0,2.98477577]
[1724100298823,0.07995858,59352.0,59351.0,2.99577577]
[1724100299026,0.07995858,59352.0,59351.0,3.00877577]
[1724100299203,0.00385858,59352.0,59351.0,3.00877577]
[1724100299512,0.00385858,59352.0,59351.0,3.12697577]
[1724100299734,0.00385858,59352.0,59351.0,3.47695377]
[1724100299926,0.00385858,59352.0,59351.0,3.49095377]
[1724100300290,0.00385858,59352.0,59351.0,3.51395377]
[1724100301062,0.00385858,59352.0,59351.0,3.48695377]
[1724100301261,0.00385858,59352.0,59351.0,3.49995377]
[1724100301627,0.00385858,59352.0,59351.0,3.51095377]
[1724100301854,0.00385858,59352.0,59351.0,3.34475377]
[1724100302061,0.07995858,59352.0,59351.0,2.99777577]
[1724100302240,0.14267958,59352.0,59351.0,3.01177577]
[1724100302475,0.14267958,59352.0,59351.0,2.99877577]
[1724100302687,0.14267958,59352.0,59351.0,2.490449]
[1724100302885,0.14267958,59352.0,59351.0,0.05162539]
[1724100303140,0.14267958,59352.0,59351.0,0.54309239]
[1724100303349,0.14267958,59352.0,59351.0,2.38007039]
[1724100303559,0.08077958,59352.0,59351.0,2.38007039]
[1724100304304,0.08077958,59352.0,59351.0,2.37807039]
[1724100304547,0.08077958,59352.0,59351.0,2.37959701]
[1724100304775,0.08077958,59352.0,59351.0,2.71657501]
[1724100304936,0.00467958,59352.0,59351.0,2.71057501]
[1724100305388,0.00467958,59352.0,59351.0,2.71757501]
[1724100305788,0.00467958,59352.0,59351.0,2.70457501]
[1724100305995,0.00467958,59352.0,59351.0,2.71057501]
[1724100306169,0.00467958,59352.0,59351.0,2.72157501]
[1724100307180,0.08177958,59352.0,59351.0,2.71557501]
[1724100307407,0.08177958,59352.0,59351.0,2.37859701]
[1724100307662,0.08177958,59352.0,59351.0,2.38759701]
[1724100308405,0.08177958,59352.0,59351.0,2.05009239]
[1724100308625,0.08177958,59352.0,59351.0,2.38707039]
[1724100309400,0.08177958,59352.0,59351.0,2.05009239]
[1724100309605,0.08177958,59352.0,59351.0,2.38707039]
[1724100309813,0.08177958,59352.0,59351.0,2.05009239]
[1724100310021,0.14377958,59352.0,59351.0,2.05009239]
[1724100310643,0.14377958,59352.0,59351.0,2.38707039]
[1724100310771,0.14377958,59352.0,59351.0,2.05009239]
[1724100311225,0.14377958,59352.0,59351.0,2.38707039]
[1724100312280,0.14377958,59352.0,59351.0,2.38759701]
[1724100312861,0.14377958,59352.0,59351.0,2.38707039]
[1724100313883,0.14377958,59352.0,59351.0,2.38797459]
[1724100314097,0.14377958,59352.0,59351.0,0.55099659]
[1724100314624,0.14377958,59352.0,59351.0,2.05099659]
[1724100315978,0.143374,59352.0,59351.0,2.05099659]
[1724100316174,0.143374,59352.0,59351.0,0.04552959]
[1724100316573,0.31186,59352.0,59351.0,0.0209042]
[1724100316775,0.648832,59352.0,59351.0,0.04595582]
[1724100317179,0.648832,59352.0,59351.0,0.0099042]
[1724100317379,0.648832,59352.0,59351.0,0.0079042]
[1724100317581,0.648832,59352.0,59351.0,0.0089042]
[1724100317926,0.648832,59352.0,59351.0,0.0009042]
[1724100318115,0.143374,59352.0,59351.0,0.0009042]
[1724100318323,0.143374,59352.0,59351.0,0.5073712]
[1724100318816,0.143374,59352.0,59351.0,0.53243158]
[1724100319837,0.081374,59352.0,59351.0,0.86840958]
[1724100320030,0.081374,59352.0,59351.0,0.53143158]
[1724100320031,0.004274,59352.0,59351.0,0.53143158]
[1724100320233,0.004274,59352.0,59351.0,1.69745358]
[1724100320578,0.084774,59352.0,59351.0,2.03543158]
[1724100320794,0.084774,59352.0,59351.0,2.37240958]
[1724100320993,0.004274,59352.0,59351.0,2.37240958]
[1724100321410,0.004274,59352.0,59351.0,2.70938758]
[1724100322156,0.004274,59352.0,59351.0,2.7099142]
[1724100322359,0.004274,59352.0,59351.0,2.7724142]
[1724100322563,0.004274,59352.0,59351.0,3.1093922]
[1724100322764,0.004274,59352.0,59351.0,2.7724142]
[1724100323163,0.004274,59352.0,59351.0,2.70938758]
[1724100323395,0.004274,59352.0,59351.0,2.7089142]
[1724100323548,0.004274,59352.0,59351.0,2.7129142]
[1724100323973,0.004274,59352.0,59351.0,2.7099142]
[1724100324195,0.004274,59352.0,59351.0,2.7159142]
[1724100330998,0.004274,59352.0,59351.0,1.2159142]
[1724100331411,0.004274,59352.0,59351.0,2.7159142]
[1724100331615,0.004274,59352.0,59351.0,2.7062671]
[1724100332556,0.004274,59352.0,59351.0,0.86876248]
[1724100332557,0.141974,59352.0,59351.0,0.86876248]
[1724100332785,0.004274,59352.0,59351.0,1.2062671]
[1724100333768,0.004274,59352.0,59351.0,1.2722671]
[1724100334375,0.004274,59352.0,59351.0,1.7092451]
[1724100334548,0.004274,59352.0,59351.0,1.75923058]
[1724100334771,0.004274,59352.0,59351.0,2.92225258]
[1724100334982,0.004274,59352.0,59351.0,2.8722671]
[1724100335410,0.004274,59352.0,59351.0,2.8682671]
[1724100335816,0.004274,59352.0,59351.0,2.8812671]
[1724100336017,0.004274,59352.0,59351.0,2.8752671]
[1724100336437,0.004274,59352.0,59351.0,2.8892671]
[1724100336846,0.004274,59352.0,59351.0,2.8752671]
[1724100337287,0.004274,59352.0,59351.0,2.8892671]
[1724100337684,0.004274,59352.0,59351.0,3.2262451]
[1724100337889,0.004274,59352.0,59351.0,3.2132451]
[1724100338323,0.004274,59352.0,59351.0,3.2939451]
[1724100338560,0.004274,59352.0,59351.0,3.4022451]
[1724100339389,0.004274,59352.0,59351.0,3.57359387]
[1724100340213,0.004274,59352.0,59351.0,3.9835444]
[1724100340417,0.004274,59352.0,59351.0,3.93357187]
[1724100340625,0.004274,59352.0,59351.0,4.38222168]
[1724100341048,0.004274,59352.0,59351.0,4.36822168]
[1724100341670,0.004274,59352.0,59351.0,4.35422168]
[1724100341896,0.004274,59352.0,59351.0,4.40419421]
[1724100342108,0.004274,59352.0,59351.0,4.29326288]
[1724100342614,0.004274,59352.0,59351.0,4.41817762]
[1724100342824,0.004274,59352.0,59351.0,4.30726288]
[1724100343032,0.004274,59352.0,59351.0,4.43217146]
[1724100343256,0.004274,59352.0,59351.0,4.18496288]
[1724100343464,0.004274,59352.0,59351.0,4.05624201]
[1724100343597,0.004274,59352.0,59351.0,3.97028488]
[1724100344042,0.004274,59352.0,59351.0,4.07024841]
[1724100344200,0.004274,59352.0,59351.0,4.07025046]
[1724100345094,0.004274,59352.0,59351.0,4.0452722]
[1724100345707,0.004274,59352.0,59351.0,3.97028488]
[1724100345905,0.004274,59352.0,59351.0,4.07025046]
[1724100346354,0.004274,59352.0,59351.0,4.04527618]
[1724100346533,0.004274,59352.0,59351.0,4.07025046]
[1724100346966,0.004274,59352.0,59351.0,3.92799205]
[1724100347170,0.004274,59352.0,59351.0,3.33259387]
[1724100347378,0.004274,59352.0,59351.0,3.47690605]
[1724100347749,0.004274,59352.0,59351.0,3.08991587]
[1724100348100,0.004274,59352.0,59351.0,3.12592805]
[1724100348295,0.004274,59352.0,59351.0,3.13992805]
[1724100348505,0.004274,59352.0,59351.0,3.12592805]
[1724100348706,0.004274,59352.0,59351.0,3.06191587]
[1724100348916,0.004274,59352.0,59351.0,3.07591587]
[1724100349062,0.004274,59352.0,59351.0,3.08991587]
[1724100349269,0.004274,59352.0,59351.0,3.07591587]
[1724100349489,0.004274,59352.0,59351.0,3.07491587]
[1724100349990,0.004274,59352.0,59351.0,3.07591587]
[1724100351123,0.004274,59352.0,59351.0,2.82274048]
[1724100351318,0.004274,59352.0,59351.0,2.04878448]
[1724100351544,0.004274,59352.0,59351.0,2.38576248]
[1724100352077,0.004274,59352.0,59351.0,2.37176248]
[1724100352485,0.004274,59352.0,59351.0,2.38176248]
[1724100353040,0.004274,59352.0,59351.0,2.36876248]
[1724100354202,0.004274,59352.0,59351.0,2.37676248]
[1724100354411,0.004274,59352.0,59351.0,0.87676248]
[1724100354924,0.004274,59352.0,59351.0,2.37676248]
[1724100355929,0.004274,59352.0,59351.0,2.7142671]
[1724100356345,0.004274,59352.0,59351.0,2.71374048]
[1724100357561,0.004274,59352.0,59351.0,2.7142671]
[1724100358190,0.004274,59352.0,59351.0,2.8537671]
[1724100358597,0.004274,59352.0,59351.0,3.36209387]
[1724100358803,0.004274,59352.0,59351.0,3.43509617]
[1724100359008,0.004274,59352.0,59351.0,3.53509617]
[1724100359413,0.004274,59352.0,59351.0,3.93379582]
[1724100359614,0.004274,59352.0,59351.0,3.92379582]
[1724100359807,0.004274,59352.0,59351.0,3.84879237]